﻿Body Name,Supp ID,Supplier Name ,Supplier Name ,Service Area Category,Supp Grp,Period,Invoice Date,TT,Unique Invoice Reference ,,Inv Amount,Account,Expenditure Description,Cost C,Cost Centre Name,Posted Amount
Nottinghamshire Fire and Rescue Service,103094,Draeger Safety UK Limited,Draeger Safety UK Limited,Management & Support Services,5,202306,28/09/2022,IP,12001544,"-1,260.00 ","1,260.00 ",B200,Bank Account - Current,9999,Default,"-213,858.67 "
Nottinghamshire Fire and Rescue Service,103094,Draeger Safety UK Limited,Draeger Safety UK Limited,Management & Support Services,5,202306,28/09/2022,IP,12001544,"-2,100.00 ","2,100.00 ",B200,Bank Account - Current,9999,Default,"-213,858.67 "
Nottinghamshire Fire and Rescue Service,102979,Planet IT Limited,Planet IT Limited,Management & Support Services,5,202306,14/09/2022,IP,12001542,"-3,264.00 ","3,264.00 ",B200,Bank Account - Current,9999,Default,"-175,057.75 "
Nottinghamshire Fire and Rescue Service,101802,EE,EE,Management & Support Services,1,202306,01/09/2022,P6,9102798,"-3,986.83 ","3,986.83 ",4302,Phones - Mobiles,2097,ICT Service Operations,1.96 
Nottinghamshire Fire and Rescue Service,100557,NCC Sundry Debtors,NCC Sundry Debtors,Operational Responses,4,202306,01/09/2022,P6,9102625,"-1,805.45 ","1,805.45 ",2201,Grounds Maintenance,1007,Warsop,3.32 
Nottinghamshire Fire and Rescue Service,104129,Oxford Safety Supplies,Oxford Safety Supplies,Management & Support Services,5,202306,25/07/2022,P6,9102630,"-6,573.12 ","6,573.12 ",4534,Carriage and Packaging,2086,Procurement,7.50 
Nottinghamshire Fire and Rescue Service,103570,Intramark Limited,Intramark Limited,Operational Responses,5,202306,03/08/2022,P6,9102736,-376.25 ,376.25 ,4400,Clothing and Uniform,2013,Service Delivery,7.50 
Nottinghamshire Fire and Rescue Service,102508,Collins Nets Ltd,Collins Nets Ltd,Management & Support Services,1,202306,31/08/2022,P6,9102807,-471.60 ,471.60 ,4534,Carriage and Packaging,2086,Procurement,9.00 
Nottinghamshire Fire and Rescue Service,102508,Collins Nets Ltd,Collins Nets Ltd,Management & Support Services,1,202306,21/09/2022,P6,9102825,-469.80 ,469.80 ,4534,Carriage and Packaging,2086,Procurement,9.00 
Nottinghamshire Fire and Rescue Service,102306,Northern Diver (International) Ltd,Northern Diver (International) Ltd,Management & Support Services,1,202306,17/06/2022,P6,9102735,-425.40 ,425.40 ,B314,Stock,2096,ICT Service Transformation,9.50 
Nottinghamshire Fire and Rescue Service,100557,NCC Sundry Debtors,NCC Sundry Debtors,Operational Responses,4,202306,01/09/2022,P6,9102624,-409.48 ,409.48 ,2205,Window Cleaning,1007,Warsop,9.64 
Nottinghamshire Fire and Rescue Service,100557,NCC Sundry Debtors,NCC Sundry Debtors,Operational Responses,4,202306,01/09/2022,P6,9102624,-409.48 ,409.48 ,2205,Window Cleaning,1013,Tuxford,9.64 
Nottinghamshire Fire and Rescue Service,100557,NCC Sundry Debtors,NCC Sundry Debtors,Operational Responses,4,202306,01/09/2022,P6,9102624,-409.48 ,409.48 ,2205,Window Cleaning,1014,Southwell,9.64 
Nottinghamshire Fire and Rescue Service,103814,Ergo Computing UK,Ergo Computing UK,Management & Support Services,5,202306,15/09/2022,P6,9102787,"-2,927.90 ","2,927.90 ",4534,Carriage and Packaging,2086,Procurement,10.00 
Nottinghamshire Fire and Rescue Service,100557,NCC Sundry Debtors,NCC Sundry Debtors,Operational Responses,4,202306,01/09/2022,P6,9102625,"-1,805.45 ","1,805.45 ",2201,Grounds Maintenance,1027,Carlton,10.21 
Nottinghamshire Fire and Rescue Service,100557,NCC Sundry Debtors,NCC Sundry Debtors,Operational Responses,4,202306,01/09/2022,P6,9102625,"-1,805.45 ","1,805.45 ",2201,Grounds Maintenance,1026,Arnold,11.31 
Nottinghamshire Fire and Rescue Service,100557,NCC Sundry Debtors,NCC Sundry Debtors,Operational Responses,4,202306,01/09/2022,P6,9102624,-406.01 ,406.01 ,2204,Window Cleaning,1002,Blidworth,11.57 
Nottinghamshire Fire and Rescue Service,100557,NCC Sundry Debtors,NCC Sundry Debtors,Operational Responses,4,202306,01/09/2022,P6,9102624,-406.01 ,406.01 ,2204,Window Cleaning,1006,Edwinstowe,11.57 
Nottinghamshire Fire and Rescue Service,100557,NCC Sundry Debtors,NCC Sundry Debtors,Operational Responses,4,202306,01/09/2022,P6,9102624,-406.01 ,406.01 ,2204,Window Cleaning,1007,Warsop,11.57 
Nottinghamshire Fire and Rescue Service,100557,NCC Sundry Debtors,NCC Sundry Debtors,Operational Responses,4,202306,01/09/2022,P6,9102624,-406.01 ,406.01 ,2204,Window Cleaning,1010,Harworth,11.57 
Nottinghamshire Fire and Rescue Service,100557,NCC Sundry Debtors,NCC Sundry Debtors,Operational Responses,4,202306,01/09/2022,P6,9102624,-406.01 ,406.01 ,2204,Window Cleaning,1011,Misterton,11.57 
Nottinghamshire Fire and Rescue Service,100557,NCC Sundry Debtors,NCC Sundry Debtors,Operational Responses,4,202306,01/09/2022,P6,9102624,-406.01 ,406.01 ,2204,Window Cleaning,1012,Retford,11.57 
Nottinghamshire Fire and Rescue Service,100557,NCC Sundry Debtors,NCC Sundry Debtors,Operational Responses,4,202306,01/09/2022,P6,9102624,-406.01 ,406.01 ,2204,Window Cleaning,1013,Tuxford,11.57 
Nottinghamshire Fire and Rescue Service,100557,NCC Sundry Debtors,NCC Sundry Debtors,Operational Responses,4,202306,01/09/2022,P6,9102624,-406.01 ,406.01 ,2204,Window Cleaning,1014,Southwell,11.57 
Nottinghamshire Fire and Rescue Service,100557,NCC Sundry Debtors,NCC Sundry Debtors,Operational Responses,4,202306,01/09/2022,P6,9102624,-406.01 ,406.01 ,2204,Window Cleaning,1015,Collingham,11.57 
Nottinghamshire Fire and Rescue Service,100557,NCC Sundry Debtors,NCC Sundry Debtors,Operational Responses,4,202306,01/09/2022,P6,9102624,-406.01 ,406.01 ,2204,Window Cleaning,1017,Bingham,11.57 
Nottinghamshire Fire and Rescue Service,100557,NCC Sundry Debtors,NCC Sundry Debtors,Operational Responses,4,202306,01/09/2022,P6,9102624,-406.01 ,406.01 ,2204,Window Cleaning,1023,Stapleford,11.57 
Nottinghamshire Fire and Rescue Service,100557,NCC Sundry Debtors,NCC Sundry Debtors,Operational Responses,4,202306,01/09/2022,P6,9102624,-406.01 ,406.01 ,2204,Window Cleaning,1024,Eastwood,11.57 
Nottinghamshire Fire and Rescue Service,100557,NCC Sundry Debtors,NCC Sundry Debtors,Operational Responses,4,202306,01/09/2022,P6,9102623,-406.01 ,406.01 ,2204,Contract Cleaning,1028,East Leake,11.57 
Nottinghamshire Fire and Rescue Service,100557,NCC Sundry Debtors,NCC Sundry Debtors,Operational Responses,4,202306,01/09/2022,P6,9102623,-409.48 ,409.48 ,2205,Contract Cleaning,1002,Blidworth,11.57 
Nottinghamshire Fire and Rescue Service,100557,NCC Sundry Debtors,NCC Sundry Debtors,Operational Responses,4,202306,01/09/2022,P6,9102623,-409.48 ,409.48 ,2205,Contract Cleaning,1005,Ashfield,11.57 
Nottinghamshire Fire and Rescue Service,100557,NCC Sundry Debtors,NCC Sundry Debtors,Operational Responses,4,202306,01/09/2022,P6,9102623,-409.48 ,409.48 ,2205,Contract Cleaning,1008,Worksop,11.57 
Nottinghamshire Fire and Rescue Service,100557,NCC Sundry Debtors,NCC Sundry Debtors,Operational Responses,4,202306,01/09/2022,P6,9102623,-409.48 ,409.48 ,2205,Contract Cleaning,1010,Harworth,11.57 
Nottinghamshire Fire and Rescue Service,100557,NCC Sundry Debtors,NCC Sundry Debtors,Operational Responses,4,202306,01/09/2022,P6,9102623,-409.48 ,409.48 ,2205,Contract Cleaning,1011,Misterton,11.57 
Nottinghamshire Fire and Rescue Service,100557,NCC Sundry Debtors,NCC Sundry Debtors,Operational Responses,4,202306,01/09/2022,P6,9102623,-409.48 ,409.48 ,2205,Contract Cleaning,1015,Collingham,11.57 
Nottinghamshire Fire and Rescue Service,100557,NCC Sundry Debtors,NCC Sundry Debtors,Operational Responses,4,202306,01/09/2022,P6,9102623,-409.48 ,409.48 ,2205,Contract Cleaning,1016,Newark,11.57 
Nottinghamshire Fire and Rescue Service,100557,NCC Sundry Debtors,NCC Sundry Debtors,Operational Responses,4,202306,01/09/2022,P6,9102623,-409.48 ,409.48 ,2205,Contract Cleaning,1017,Bingham,11.57 
Nottinghamshire Fire and Rescue Service,100557,NCC Sundry Debtors,NCC Sundry Debtors,Operational Responses,4,202306,01/09/2022,P6,9102623,-409.48 ,409.48 ,2205,Contract Cleaning,1023,Stapleford,11.57 
Nottinghamshire Fire and Rescue Service,100557,NCC Sundry Debtors,NCC Sundry Debtors,Operational Responses,4,202306,01/09/2022,P6,9102623,-409.48 ,409.48 ,2205,Contract Cleaning,1024,Eastwood,11.57 
Nottinghamshire Fire and Rescue Service,100557,NCC Sundry Debtors,NCC Sundry Debtors,Operational Responses,4,202306,01/09/2022,P6,9102623,-409.48 ,409.48 ,2205,Contract Cleaning,1026,Arnold,11.57 
Nottinghamshire Fire and Rescue Service,100557,NCC Sundry Debtors,NCC Sundry Debtors,Operational Responses,4,202306,01/09/2022,P6,9102623,-409.48 ,409.48 ,2205,Contract Cleaning,1028,East Leake,11.57 
Nottinghamshire Fire and Rescue Service,100557,NCC Sundry Debtors,NCC Sundry Debtors,Operational Responses,4,202306,01/09/2022,P6,9102624,-409.48 ,409.48 ,2205,Window Cleaning,1019,West Bridgford,13.49 
Nottinghamshire Fire and Rescue Service,100557,NCC Sundry Debtors,NCC Sundry Debtors,Management & Support Services,4,202306,01/09/2022,P6,9102624,-409.48 ,409.48 ,2205,Window Cleaning,1030,Service Development Centre,13.49 
Nottinghamshire Fire and Rescue Service,100557,NCC Sundry Debtors,NCC Sundry Debtors,Operational Responses,4,202306,01/09/2022,P6,9102623,-406.01 ,406.01 ,2204,Contract Cleaning,1003,London Road,14.46 
Nottinghamshire Fire and Rescue Service,103589,Hot Pack International,Hot Pack International,Management & Support Services,5,202306,06/09/2022,P6,9102760,-565.14 ,565.14 ,4534,Carriage and Packaging,2086,Procurement,14.95 
Nottinghamshire Fire and Rescue Service,101312,Lift Components Limited,Lift Components Limited,Management & Support Services,1,202306,02/12/2021,P6,9102785,-253.20 ,253.20 ,4534,Carriage and Packaging,2086,Procurement,15.00 
Nottinghamshire Fire and Rescue Service,101312,Lift Components Limited,Lift Components Limited,Management & Support Services,1,202306,10/08/2022,P6,9102786,-253.20 ,253.20 ,4534,Carriage and Packaging,2086,Procurement,15.00 
Nottinghamshire Fire and Rescue Service,101312,Lift Components Limited,Lift Components Limited,Management & Support Services,1,202306,02/12/2022,P6,9102784,-253.20 ,253.20 ,4534,Carriage and Packaging,2086,Procurement,15.00 
Nottinghamshire Fire and Rescue Service,100557,NCC Sundry Debtors,NCC Sundry Debtors,Operational Responses,4,202306,01/09/2022,P6,9102625,"-1,805.45 ","1,805.45 ",2201,Grounds Maintenance,1015,Collingham,15.21 
Nottinghamshire Fire and Rescue Service,100557,NCC Sundry Debtors,NCC Sundry Debtors,Operational Responses,4,202306,01/09/2022,P6,9102624,-406.01 ,406.01 ,2204,Window Cleaning,1001,Mansfield,15.42 
Nottinghamshire Fire and Rescue Service,100557,NCC Sundry Debtors,NCC Sundry Debtors,Operational Responses,4,202306,01/09/2022,P6,9102624,-406.01 ,406.01 ,2204,Window Cleaning,1005,Ashfield,15.42 
Nottinghamshire Fire and Rescue Service,100557,NCC Sundry Debtors,NCC Sundry Debtors,Operational Responses,4,202306,01/09/2022,P6,9102623,-406.01 ,406.01 ,2204,Contract Cleaning,1008,Worksop,15.42 
Nottinghamshire Fire and Rescue Service,100557,NCC Sundry Debtors,NCC Sundry Debtors,Operational Responses,4,202306,01/09/2022,P6,9102623,-406.01 ,406.01 ,2204,Contract Cleaning,1016,Newark,15.42 
Nottinghamshire Fire and Rescue Service,100557,NCC Sundry Debtors,NCC Sundry Debtors,Operational Responses,4,202306,01/09/2022,P6,9102623,-406.01 ,406.01 ,2204,Contract Cleaning,1019,West Bridgford,15.42 
Nottinghamshire Fire and Rescue Service,100557,NCC Sundry Debtors,NCC Sundry Debtors,Operational Responses,4,202306,01/09/2022,P6,9102623,-406.01 ,406.01 ,2204,Contract Cleaning,1020,Stockhill,15.42 
Nottinghamshire Fire and Rescue Service,100557,NCC Sundry Debtors,NCC Sundry Debtors,Operational Responses,4,202306,01/09/2022,P6,9102623,-406.01 ,406.01 ,2204,Contract Cleaning,1026,Arnold,15.42 
Nottinghamshire Fire and Rescue Service,100557,NCC Sundry Debtors,NCC Sundry Debtors,Operational Responses,4,202306,01/09/2022,P6,9102623,-406.01 ,406.01 ,2204,Contract Cleaning,1027,Carlton,15.42 
Nottinghamshire Fire and Rescue Service,100557,NCC Sundry Debtors,NCC Sundry Debtors,Operational Responses,4,202306,01/09/2022,P6,9102623,-406.01 ,406.01 ,2204,Contract Cleaning,1029,Highfields Station,15.42 
Nottinghamshire Fire and Rescue Service,100557,NCC Sundry Debtors,NCC Sundry Debtors,Operational Responses,4,202306,01/09/2022,P6,9102623,-409.48 ,409.48 ,2205,Contract Cleaning,1012,Retford,15.42 
Nottinghamshire Fire and Rescue Service,100557,NCC Sundry Debtors,NCC Sundry Debtors,Operational Responses,4,202306,01/09/2022,P6,9102623,-409.48 ,409.48 ,2205,Contract Cleaning,1027,Carlton,15.42 
Nottinghamshire Fire and Rescue Service,100468,Specialised Canvas Group,Specialised Canvas Group,Management & Support Services,1,202306,06/09/2022,P6,9102690,-465.37 ,465.37 ,4534,Carriage and Packaging,2086,Procurement,15.61 
Nottinghamshire Fire and Rescue Service,100557,NCC Sundry Debtors,NCC Sundry Debtors,Operational Responses,4,202306,01/09/2022,P6,9102624,-409.48 ,409.48 ,2205,Window Cleaning,1006,Edwinstowe,17.35 
Nottinghamshire Fire and Rescue Service,100557,NCC Sundry Debtors,NCC Sundry Debtors,Operational Responses,4,202306,01/09/2022,P6,9102624,-409.48 ,409.48 ,2205,Window Cleaning,1020,Stockhill,17.35 
Nottinghamshire Fire and Rescue Service,102309,Walter Frank & Sons Limited,Walter Frank & Sons Limited,Management & Support Services,1,202306,12/09/2022,P6,9102752,-363.84 ,363.84 ,4534,Carriage and Packaging,2087,Estates Department (Previously Premises),18.20 
Nottinghamshire Fire and Rescue Service,100557,NCC Sundry Debtors,NCC Sundry Debtors,Operational Responses,4,202306,01/09/2022,P6,9102624,-409.48 ,409.48 ,2205,Window Cleaning,1001,Mansfield,19.27 
Nottinghamshire Fire and Rescue Service,100557,NCC Sundry Debtors,NCC Sundry Debtors,Operational Responses,4,202306,01/09/2022,P6,9102624,-409.48 ,409.48 ,2205,Window Cleaning,1003,London Road,23.13 
Nottinghamshire Fire and Rescue Service,100557,NCC Sundry Debtors,NCC Sundry Debtors,Operational Responses,4,202306,01/09/2022,P6,9102625,"-1,805.45 ","1,805.45 ",2201,Grounds Maintenance,1014,Southwell,26.00 
Nottinghamshire Fire and Rescue Service,100557,NCC Sundry Debtors,NCC Sundry Debtors,Operational Responses,4,202306,01/09/2022,P6,9102625,"-1,805.45 ","1,805.45 ",2201,Grounds Maintenance,1012,Retford,26.31 
Nottinghamshire Fire and Rescue Service,100557,NCC Sundry Debtors,NCC Sundry Debtors,Operational Responses,4,202306,01/09/2022,P6,9102625,"-1,805.45 ","1,805.45 ",2201,Grounds Maintenance,1024,Eastwood,27.09 
Nottinghamshire Fire and Rescue Service,100557,NCC Sundry Debtors,NCC Sundry Debtors,Operational Responses,4,202306,01/09/2022,P6,9102625,"-1,805.45 ","1,805.45 ",2201,Grounds Maintenance,1013,Tuxford,27.35 
Nottinghamshire Fire and Rescue Service,102280,Amptron Electrical Services,Amptron Electrical Services,Management & Support Services,1,202306,31/05/2022,P6,9102710,"-15,976.96 ","15,976.96 ",2050,Building Maintenance - Planned,2087,Estates Department (Previously Premises),33.52 
Nottinghamshire Fire and Rescue Service,100557,NCC Sundry Debtors,NCC Sundry Debtors,Management & Support Services,4,202306,01/09/2022,P6,9102623,-406.01 ,406.01 ,2204,Contract Cleaning,1030,Service Development Centre,34.69 
Nottinghamshire Fire and Rescue Service,100557,NCC Sundry Debtors,NCC Sundry Debtors,Operational Responses,4,202306,01/09/2022,P6,9102625,"-1,805.45 ","1,805.45 ",2201,Grounds Maintenance,1008,Worksop,35.95 
Nottinghamshire Fire and Rescue Service,100557,NCC Sundry Debtors,NCC Sundry Debtors,Operational Responses,4,202306,01/09/2022,P6,9102625,"-1,805.45 ","1,805.45 ",2201,Grounds Maintenance,1003,London Road,36.40 
Nottinghamshire Fire and Rescue Service,100557,NCC Sundry Debtors,NCC Sundry Debtors,Operational Responses,4,202306,01/09/2022,P6,9102625,"-1,805.45 ","1,805.45 ",2201,Grounds Maintenance,1016,Newark,37.78 
Nottinghamshire Fire and Rescue Service,100557,NCC Sundry Debtors,NCC Sundry Debtors,Operational Responses,4,202306,01/09/2022,P6,9102625,"-1,805.45 ","1,805.45 ",2201,Grounds Maintenance,1006,Edwinstowe,38.51 
Nottinghamshire Fire and Rescue Service,100557,NCC Sundry Debtors,NCC Sundry Debtors,Operational Responses,4,202306,01/09/2022,P6,9102624,-409.48 ,409.48 ,2205,Window Cleaning,1029,Highfields Station,38.55 
Nottinghamshire Fire and Rescue Service,100557,NCC Sundry Debtors,NCC Sundry Debtors,Operational Responses,4,202306,01/09/2022,P6,9102625,"-1,805.45 ","1,805.45 ",2201,Grounds Maintenance,1011,Misterton,39.23 
Nottinghamshire Fire and Rescue Service,100557,NCC Sundry Debtors,NCC Sundry Debtors,Operational Responses,4,202306,01/09/2022,P6,9102625,"-1,805.45 ","1,805.45 ",2201,Grounds Maintenance,1001,Mansfield,39.60 
Nottinghamshire Fire and Rescue Service,103280,Shred IT Limited,Shred IT Limited,Operational Responses,5,202306,31/08/2022,P6,9102756,"-2,192.61 ","2,192.61 ",2106,Refuse / Trade Waste Collection,1001,Mansfield,40.00 
Nottinghamshire Fire and Rescue Service,103280,Shred IT Limited,Shred IT Limited,Operational Responses,5,202306,31/08/2022,P6,9102756,"-2,192.61 ","2,192.61 ",2106,Refuse / Trade Waste Collection,1003,London Road,40.00 
Nottinghamshire Fire and Rescue Service,103280,Shred IT Limited,Shred IT Limited,Operational Responses,5,202306,31/08/2022,P6,9102756,"-2,192.61 ","2,192.61 ",2106,Refuse / Trade Waste Collection,1006,Edwinstowe,40.00 
Nottinghamshire Fire and Rescue Service,103280,Shred IT Limited,Shred IT Limited,Operational Responses,5,202306,31/08/2022,P6,9102756,"-2,192.61 ","2,192.61 ",2106,Refuse / Trade Waste Collection,1008,Worksop,40.00 
Nottinghamshire Fire and Rescue Service,103280,Shred IT Limited,Shred IT Limited,Operational Responses,5,202306,31/08/2022,P6,9102756,"-2,192.61 ","2,192.61 ",2106,Refuse / Trade Waste Collection,1012,Retford,40.00 
Nottinghamshire Fire and Rescue Service,103280,Shred IT Limited,Shred IT Limited,Operational Responses,5,202306,31/08/2022,P6,9102756,"-2,192.61 ","2,192.61 ",2106,Refuse / Trade Waste Collection,1016,Newark,40.00 
Nottinghamshire Fire and Rescue Service,103280,Shred IT Limited,Shred IT Limited,Operational Responses,5,202306,31/08/2022,P6,9102756,"-2,192.61 ","2,192.61 ",2106,Refuse / Trade Waste Collection,1027,Carlton,40.00 
Nottinghamshire Fire and Rescue Service,103280,Shred IT Limited,Shred IT Limited,Operational Responses,5,202306,31/08/2022,P6,9102756,"-2,192.61 ","2,192.61 ",2106,Refuse / Trade Waste Collection,1029,Highfields Station,40.00 
Nottinghamshire Fire and Rescue Service,103280,Shred IT Limited,Shred IT Limited,Management & Support Services,5,202306,31/08/2022,P6,9102756,"-2,192.61 ","2,192.61 ",2106,Refuse / Trade Waste Collection,1030,Service Development Centre,40.00 
Nottinghamshire Fire and Rescue Service,100557,NCC Sundry Debtors,NCC Sundry Debtors,Operational Responses,4,202306,01/09/2022,P6,9102625,"-1,805.45 ","1,805.45 ",2201,Grounds Maintenance,1010,Harworth,42.26 
Nottinghamshire Fire and Rescue Service,102280,Amptron Electrical Services,Amptron Electrical Services,Operational Responses,1,202306,31/07/2022,P6,9102708,"-37,970.44 ","37,970.44 ",2000,Buildings Repairs and Maintenance - Reactive,1010,Harworth,48.49 
Nottinghamshire Fire and Rescue Service,102309,Walter Frank & Sons Limited,Walter Frank & Sons Limited,Management & Support Services,1,202306,15/09/2022,P6,9102783,"-2,394.00 ","2,394.00 ",4534,Carriage and Packaging,2086,Procurement,55.00 
Nottinghamshire Fire and Rescue Service,100557,NCC Sundry Debtors,NCC Sundry Debtors,Operational Responses,4,202306,01/09/2022,P6,9102625,"-1,805.45 ","1,805.45 ",2201,Grounds Maintenance,1017,Bingham,64.08 
Nottinghamshire Fire and Rescue Service,100557,NCC Sundry Debtors,NCC Sundry Debtors,Operational Responses,4,202306,01/09/2022,P6,9102625,"-1,805.45 ","1,805.45 ",2201,Grounds Maintenance,1002,Blidworth,67.84 
Nottinghamshire Fire and Rescue Service,101866,Leicestershire Fire & Rescue Service (Bacs),Leicestershire Fire & Rescue Service (Bacs),Operational Responses,4,202306,04/07/2022,P6,9102611,"-1,741.00 ","1,741.00 ",3500,Casual Mileage,2005,Fire Control,77.00 
Nottinghamshire Fire and Rescue Service,100557,NCC Sundry Debtors,NCC Sundry Debtors,Operational Responses,4,202306,01/09/2022,P6,9102625,"-1,805.45 ","1,805.45 ",2201,Grounds Maintenance,1029,Highfields Station,79.20 
Nottinghamshire Fire and Rescue Service,100557,NCC Sundry Debtors,NCC Sundry Debtors,Operational Responses,4,202306,01/09/2022,P6,9102625,"-1,805.45 ","1,805.45 ",2201,Grounds Maintenance,1023,Stapleford,80.50 
Nottinghamshire Fire and Rescue Service,102280,Amptron Electrical Services,Amptron Electrical Services,Operational Responses,1,202306,31/07/2022,P6,9102708,"-37,970.44 ","37,970.44 ",2000,Buildings Repairs and Maintenance - Reactive,1011,Misterton,85.12 
Nottinghamshire Fire and Rescue Service,102280,Amptron Electrical Services,Amptron Electrical Services,Operational Responses,1,202306,31/07/2022,P6,9102708,"-37,970.44 ","37,970.44 ",2000,Buildings Repairs and Maintenance - Reactive,1024,Eastwood,85.12 
Nottinghamshire Fire and Rescue Service,100290,Lemaitre Ltd,Lemaitre Ltd,Management & Support Services,1,202306,16/09/2022,P6,9102782,"-2,959.20 ","2,959.20 ",4534,Carriage and Packaging,2086,Procurement,90.00 
Nottinghamshire Fire and Rescue Service,102280,Amptron Electrical Services,Amptron Electrical Services,Operational Responses,1,202306,31/07/2022,P6,9102708,"-37,970.44 ","37,970.44 ",2000,Buildings Repairs and Maintenance - Reactive,1028,East Leake,100.83 
Nottinghamshire Fire and Rescue Service,104007,Castle Water Limited,Castle Water Limited,Operational Responses,5,202306,02/09/2022,P6,9102879,-374.13 ,374.13 ,2103,Water Rates,1016,Newark,107.68 
Nottinghamshire Fire and Rescue Service,100557,NCC Sundry Debtors,NCC Sundry Debtors,Operational Responses,4,202306,01/09/2022,P6,9102625,"-1,805.45 ","1,805.45 ",2201,Grounds Maintenance,1019,West Bridgford,108.64 
Nottinghamshire Fire and Rescue Service,104189,TNR Coaching Limited,TNR Coaching Limited,Management & Support Services,5,202306,17/08/2022,P6,9102705,-436.80 ,436.80 ,4523,Catering/Food & Beverages,2059,Corporate Training,126.00 
Nottinghamshire Fire and Rescue Service,102280,Amptron Electrical Services,Amptron Electrical Services,Operational Responses,1,202306,31/07/2022,P6,9102708,"-37,970.44 ","37,970.44 ",2000,Buildings Repairs and Maintenance - Reactive,1023,Stapleford,128.56 
Nottinghamshire Fire and Rescue Service,100557,NCC Sundry Debtors,NCC Sundry Debtors,Operational Responses,4,202306,01/09/2022,P6,9102623,"-33,678.30 ","33,678.30 ",2204,Contract Cleaning,1002,Blidworth,132.59 
Nottinghamshire Fire and Rescue Service,100557,NCC Sundry Debtors,NCC Sundry Debtors,Management & Support Services,4,202306,01/09/2022,P6,9102625,"-1,805.45 ","1,805.45 ",2201,Grounds Maintenance,1028,East Leake,132.86 
Nottinghamshire Fire and Rescue Service,103820,VIA East Midlands Ltd,VIA East Midlands Ltd,Management & Support Services,5,202306,21/07/2022,P6,9102694,-360.00 ,360.00 ,1801,Training,2084,Engineering,150.00 
Nottinghamshire Fire and Rescue Service,102280,Amptron Electrical Services,Amptron Electrical Services,Management & Support Services,1,202306,31/05/2022,P6,9102710,"-15,976.96 ","15,976.96 ",2050,Building Maintenance - Planned,2087,Estates Department (Previously Premises),154.80 
Nottinghamshire Fire and Rescue Service,100557,NCC Sundry Debtors,NCC Sundry Debtors,Operational Responses,4,202306,01/09/2022,P6,9102625,"-1,805.45 ","1,805.45 ",2201,Grounds Maintenance,1030,Service Development Centre,156.75 
Nottinghamshire Fire and Rescue Service,100557,NCC Sundry Debtors,NCC Sundry Debtors,Operational Responses,4,202306,01/09/2022,P6,9102623,"-33,678.30 ","33,678.30 ",2204,Contract Cleaning,1007,Warsop,165.59 
Nottinghamshire Fire and Rescue Service,102280,Amptron Electrical Services,Amptron Electrical Services,Management & Support Services,1,202306,31/05/2022,P6,9102710,"-15,976.96 ","15,976.96 ",2050,Building Maintenance - Planned,2087,Estates Department (Previously Premises),179.91 
Nottinghamshire Fire and Rescue Service,100557,NCC Sundry Debtors,NCC Sundry Debtors,Operational Responses,4,202306,01/09/2022,P6,9102625,"-1,805.45 ","1,805.45 ",2201,Grounds Maintenance,1005,Ashfield,182.04 
Nottinghamshire Fire and Rescue Service,101312,Lift Components Limited,Lift Components Limited,Management & Support Services,1,202306,02/12/2021,P6,9102785,-253.20 ,253.20 ,B314,Stock,9999,Default,196.00 
Nottinghamshire Fire and Rescue Service,101312,Lift Components Limited,Lift Components Limited,Management & Support Services,1,202306,10/08/2022,P6,9102786,-253.20 ,253.20 ,B314,Stock,9999,Default,196.00 
Nottinghamshire Fire and Rescue Service,101312,Lift Components Limited,Lift Components Limited,Management & Support Services,1,202306,02/12/2022,P6,9102784,-253.20 ,253.20 ,B314,Stock,9999,Default,196.00 
Nottinghamshire Fire and Rescue Service,100557,NCC Sundry Debtors,NCC Sundry Debtors,Operational Responses,4,202306,01/09/2022,P6,9102623,"-33,678.30 ","33,678.30 ",2204,Contract Cleaning,1013,Tuxford,198.69 
Nottinghamshire Fire and Rescue Service,100557,NCC Sundry Debtors,NCC Sundry Debtors,Operational Responses,4,202306,01/09/2022,P6,9102623,"-33,678.30 ","33,678.30 ",2204,Contract Cleaning,1028,East Leake,198.74 
Nottinghamshire Fire and Rescue Service,100557,NCC Sundry Debtors,NCC Sundry Debtors,Operational Responses,4,202306,01/09/2022,P6,9102623,"-33,678.30 ","33,678.30 ",2204,Contract Cleaning,1017,Bingham,198.88 
Nottinghamshire Fire and Rescue Service,102280,Amptron Electrical Services,Amptron Electrical Services,Management & Support Services,1,202306,31/05/2022,P6,9102710,"-15,976.96 ","15,976.96 ",2050,Building Maintenance - Planned,2087,Estates Department (Previously Premises),206.39 
Nottinghamshire Fire and Rescue Service,100557,NCC Sundry Debtors,NCC Sundry Debtors,Operational Responses,4,202306,01/09/2022,P6,9102625,"-1,805.45 ","1,805.45 ",2201,Grounds Maintenance,1020,Stockhill,216.10 
Nottinghamshire Fire and Rescue Service,101929,Selecta UK,Selecta UK,Operational Responses,1,202306,31/08/2022,P6,9102605,-261.00 ,261.00 ,4524,Drinking Water,1003,London Road,217.50 
Nottinghamshire Fire and Rescue Service,101929,Selecta UK,Selecta UK,Operational Responses,1,202306,06/09/2022,P6,9102840,-261.00 ,261.00 ,4524,Drinking Water,1016,Newark,217.50 
Nottinghamshire Fire and Rescue Service,102280,Amptron Electrical Services,Amptron Electrical Services,Management & Support Services,1,202306,31/05/2022,P6,9102710,"-15,976.96 ","15,976.96 ",2050,Building Maintenance - Planned,2087,Estates Department (Previously Premises),223.15 
Nottinghamshire Fire and Rescue Service,103483,Risual Limited,Risual Limited,Management & Support Services,5,202306,31/08/2022,P6,9102603,-270.00 ,270.00 ,4101,Computer Software Maintenance Contracts,2097,ICT Service Operations,225.00 
Nottinghamshire Fire and Rescue Service,100357,Eastern Shires Purchasing Organisation,Eastern Shires Purchasing Organisation,Management & Support Services,1,202306,12/09/2022,P6,9102884,-271.01 ,271.01 ,B314,Stock,9999,Default,225.84 
Nottinghamshire Fire and Rescue Service,102190,Dot Promotional Clothing,Dot Promotional Clothing,Management & Support Services,1,202306,30/08/2022,P6,9102666,-278.40 ,278.40 ,B314,Stock,9999,Default,232.00 
Nottinghamshire Fire and Rescue Service,103373,GTT (Interoute/Easynet),GTT (Interoute/Easynet),Management & Support Services,5,202306,25/09/2022,P6,9102821,"-15,741.62 ","15,741.62 ",4101,Computer Software Maintenance Contracts,2095,ICT Digital Transformation,232.63 
Nottinghamshire Fire and Rescue Service,104189,TNR Coaching Limited,TNR Coaching Limited,Management & Support Services,5,202306,17/08/2022,P6,9102705,-436.80 ,436.80 ,1801,Training,2059,Corporate Training,238.00 
Nottinghamshire Fire and Rescue Service,102280,Amptron Electrical Services,Amptron Electrical Services,Management & Support Services,1,202306,31/05/2022,P6,9102710,"-15,976.96 ","15,976.96 ",2050,Building Maintenance - Planned,2087,Estates Department (Previously Premises),239.91 
Nottinghamshire Fire and Rescue Service,102558,Merridale Ltd,Merridale Ltd,Management & Support Services,1,202306,05/09/2022,P6,9102744,-291.42 ,291.42 ,3200,Fuel - Vehicle,2084,Engineering,242.85 
Nottinghamshire Fire and Rescue Service,104007,Castle Water Limited,Castle Water Limited,Operational Responses,5,202306,02/09/2022,P6,9102879,-374.13 ,374.13 ,2104,Sewerage and Environmental,1016,Newark,244.91 
Nottinghamshire Fire and Rescue Service,102280,Amptron Electrical Services,Amptron Electrical Services,Management & Support Services,1,202306,31/05/2022,P6,9102710,"-15,976.96 ","15,976.96 ",2050,Building Maintenance - Planned,2087,Estates Department (Previously Premises),246.91 
Nottinghamshire Fire and Rescue Service,104109,ASK Europe,ASK Europe,Management & Support Services,5,202306,24/08/2022,P6,9102594,-300.00 ,300.00 ,1801,Training,2054,Equalities Team,250.00 
Nottinghamshire Fire and Rescue Service,102280,Amptron Electrical Services,Amptron Electrical Services,Management & Support Services,1,202306,26/08/2022,P6,9102842,-300.00 ,300.00 ,C101,Building Works,4102,Strategic New Build Projects,250.00 
Nottinghamshire Fire and Rescue Service,102280,Amptron Electrical Services,Amptron Electrical Services,Management & Support Services,1,202306,31/05/2022,P6,9102710,"-15,976.96 ","15,976.96 ",2050,Building Maintenance - Planned,2087,Estates Department (Previously Premises),255.87 
Nottinghamshire Fire and Rescue Service,100408,Central Marine Services Ltd,Central Marine Services Ltd,Management & Support Services,1,202306,05/09/2022,P6,9102661,-310.80 ,310.80 ,4000,Operational Equipment Purchase,2084,Engineering,259.00 
Nottinghamshire Fire and Rescue Service,103981,Joseph Gleave and Son Limited -Joseph Gleave and Son (Holdings) Limited,Joseph Gleave and Son Limited -Joseph Gleave and Son (Holdings) Limited,Management & Support Services,5,202306,02/09/2022,P6,9102652,-315.36 ,315.36 ,B314,Stock,9999,Default,262.80 
Nottinghamshire Fire and Rescue Service,104129,Oxford Safety Supplies,Oxford Safety Supplies,Management & Support Services,5,202306,15/07/2022,P6,9102589,"-31,548.06 ","31,548.06 ",B314,Stock,9999,Default,263.60 
Nottinghamshire Fire and Rescue Service,100557,NCC Sundry Debtors,NCC Sundry Debtors,Operational Responses,4,202306,01/09/2022,P6,9102623,"-33,678.30 ","33,678.30 ",2204,Contract Cleaning,1011,Misterton,265.08 
Nottinghamshire Fire and Rescue Service,102280,Amptron Electrical Services,Amptron Electrical Services,Management & Support Services,1,202306,31/05/2022,P6,9102710,"-15,976.96 ","15,976.96 ",2050,Building Maintenance - Planned,2087,Estates Department (Previously Premises),273.43 
Nottinghamshire Fire and Rescue Service,100408,Central Marine Services Ltd,Central Marine Services Ltd,Management & Support Services,1,202306,05/09/2022,P6,9102660,-333.60 ,333.60 ,4000,Operational Equipment Purchase,2084,Engineering,278.00 
Nottinghamshire Fire and Rescue Service,100357,Eastern Shires Purchasing Organisation,Eastern Shires Purchasing Organisation,Management & Support Services,1,202306,01/09/2022,P6,9102656,-337.64 ,337.64 ,B314,Stock,9999,Default,281.37 
Nottinghamshire Fire and Rescue Service,102744,EDF Energy,EDF Energy,Operational Responses,1,202306,01/08/2022,P6,9102695,-296.66 ,296.66 ,2100,Electricity,1002,Blidworth,282.59 
Nottinghamshire Fire and Rescue Service,104098,Total Gas & Power Limited,Total Gas & Power Limited,Operational Responses,5,202306,13/09/2022,P6,9102870,-298.90 ,298.90 ,2101,Gas,1010,Harworth,284.67 
Nottinghamshire Fire and Rescue Service,102309,Walter Frank & Sons Limited,Walter Frank & Sons Limited,Management & Support Services,1,202306,12/09/2022,P6,9102752,-363.84 ,363.84 ,B314,Stock,9999,Default,285.00 
Nottinghamshire Fire and Rescue Service,100357,Eastern Shires Purchasing Organisation,Eastern Shires Purchasing Organisation,Management & Support Services,1,202306,26/08/2022,P6,9102642,-345.24 ,345.24 ,B314,Stock,9999,Default,287.70 
Nottinghamshire Fire and Rescue Service,101929,Selecta UK,Selecta UK,Operational Responses,1,202306,19/08/2022,P6,9102599,-348.00 ,348.00 ,4524,Drinking Water,1008,Worksop,290.00 
Nottinghamshire Fire and Rescue Service,101000,C F S Messing Account Stockhill,C F S Messing Account Stockhill,Management & Support Services,8,202306,31/07/2022,P6,9102730,-291.00 ,291.00 ,4560,Subsistence,1020,Stockhill,291.00 
Nottinghamshire Fire and Rescue Service,100557,NCC Sundry Debtors,NCC Sundry Debtors,Operational Responses,4,202306,01/09/2022,P6,9102623,"-33,678.30 ","33,678.30 ",2204,Contract Cleaning,1014,Southwell,298.18 
Nottinghamshire Fire and Rescue Service,100557,NCC Sundry Debtors,NCC Sundry Debtors,Operational Responses,4,202306,01/09/2022,P6,9102623,"-33,678.30 ","33,678.30 ",2204,Contract Cleaning,1015,Collingham,298.18 
Nottinghamshire Fire and Rescue Service,104098,Total Gas & Power Limited,Total Gas & Power Limited,Operational Responses,5,202306,13/09/2022,P6,9102858,-317.96 ,317.96 ,2101,Gas,1024,Eastwood,302.82 
Nottinghamshire Fire and Rescue Service,100224,Delta Fire,Delta Fire,Management & Support Services,1,202306,11/07/2022,P6,9102601,-363.96 ,363.96 ,4004,Fire Hose and Couplings,2084,Engineering,303.30 
Nottinghamshire Fire and Rescue Service,103570,Intramark Limited,Intramark Limited,Operational Responses,5,202306,03/08/2022,P6,9102736,-376.25 ,376.25 ,4400,Clothing and Uniform,2013,Service Delivery,306.04 
Nottinghamshire Fire and Rescue Service,101791,Bassetlaw District Council (Debt Collection),Bassetlaw District Council (Debt Collection),Operational Responses,4,202306,06/09/2022,P6,9102847,"-1,292.64 ","1,292.64 ",2105,Business Rates,1008,Worksop,307.64 
Nottinghamshire Fire and Rescue Service,104233,Aero Healthcare Limited,Aero Healthcare Limited,Management & Support Services,5,202306,04/08/2022,P6,9102801,-372.96 ,372.96 ,B314,Stock,9999,Default,310.80 
Nottinghamshire Fire and Rescue Service,100228,Romar Innovate,Romar Innovate,Management & Support Services,1,202306,15/07/2022,P6,9102746,-388.15 ,388.15 ,B314,Stock,9999,Default,323.46 
Nottinghamshire Fire and Rescue Service,103981,Joseph Gleave and Son Limited -Joseph Gleave and Son (Holdings) Limited,Joseph Gleave and Son Limited -Joseph Gleave and Son (Holdings) Limited,Management & Support Services,5,202306,02/09/2022,P6,9102654,-391.39 ,391.39 ,B314,Stock,9999,Default,326.16 
Nottinghamshire Fire and Rescue Service,100557,NCC Sundry Debtors,NCC Sundry Debtors,Operational Responses,4,202306,01/09/2022,P6,9102623,"-33,678.30 ","33,678.30 ",2204,Contract Cleaning,1024,Eastwood,331.22 
Nottinghamshire Fire and Rescue Service,100557,NCC Sundry Debtors,NCC Sundry Debtors,Operational Responses,4,202306,01/09/2022,P6,9102623,"-33,678.30 ","33,678.30 ",2204,Contract Cleaning,1010,Harworth,331.27 
Nottinghamshire Fire and Rescue Service,101791,Bassetlaw District Council (Debt Collection),Bassetlaw District Council (Debt Collection),Operational Responses,4,202306,24/08/2022,P6,9102873,-335.00 ,335.00 ,2105,Business Rates,1008,Worksop,335.00 
Nottinghamshire Fire and Rescue Service,102306,Northern Diver (International) Ltd,Northern Diver (International) Ltd,Management & Support Services,1,202306,17/06/2022,P6,9102735,-425.40 ,425.40 ,4402,Uniform and Protectice Clothing Repairs,2086,Procurement,345.00 
Nottinghamshire Fire and Rescue Service,102190,Dot Promotional Clothing,Dot Promotional Clothing,Management & Support Services,1,202306,30/08/2022,P6,9102667,-417.60 ,417.60 ,B314,Stock,9999,Default,348.00 
Nottinghamshire Fire and Rescue Service,102431,Jafco Tools,Jafco Tools,Management & Support Services,1,202306,09/09/2022,P6,9102687,-418.66 ,418.66 ,B314,Stock,9999,Default,348.88 
Nottinghamshire Fire and Rescue Service,103197,Legal Experience Training Limited,Legal Experience Training Limited,Prevention and Education ,5,202306,08/09/2022,P6,9102684,-420.00 ,420.00 ,1801,Training,2026,Fire Investigation,350.00 
Nottinghamshire Fire and Rescue Service,102660,Jigsaw Systems Limited,Jigsaw Systems Limited,Management & Support Services,5,202306,14/09/2022,P6,9102738,"-1,209.90 ","1,209.90 ",4100,Computer Hardware/ Software,2097,ICT Service Operations,352.45 
Nottinghamshire Fire and Rescue Service,100357,Eastern Shires Purchasing Organisation,Eastern Shires Purchasing Organisation,Management & Support Services,1,202306,01/09/2022,P6,9102657,-432.20 ,432.20 ,B314,Stock,9999,Default,360.17 
Nottinghamshire Fire and Rescue Service,102376,Bristol Uniforms Limited,Bristol Uniforms Limited,"Statutory Inspection, Certification & Enforcement",1,202306,23/09/2022,P6,9102831,-432.66 ,432.66 ,4400,Clothing and Uniform,2021,Fire Protection,360.55 
Nottinghamshire Fire and Rescue Service,101980,Hays Specialist Recruitment Limited,Hays Specialist Recruitment Limited,Management & Support Services,1,202306,21/09/2022,P6,9102793,-434.84 ,434.84 ,1005,Admin Agency Staff,2058,HR Support,362.37 
Nottinghamshire Fire and Rescue Service,100468,Specialised Canvas Group,Specialised Canvas Group,Management & Support Services,1,202306,06/09/2022,P6,9102690,-465.37 ,465.37 ,B314,Stock,9999,Default,372.20 
Nottinghamshire Fire and Rescue Service,102508,Collins Nets Ltd,Collins Nets Ltd,Management & Support Services,1,202306,21/09/2022,P6,9102825,-469.80 ,469.80 ,B314,Stock,9999,Default,382.50 
Nottinghamshire Fire and Rescue Service,102508,Collins Nets Ltd,Collins Nets Ltd,Management & Support Services,1,202306,31/08/2022,P6,9102807,-471.60 ,471.60 ,B314,Stock,9999,Default,384.00 
Nottinghamshire Fire and Rescue Service,104098,Total Gas & Power Limited,Total Gas & Power Limited,Operational Responses,5,202306,13/09/2022,P6,9102854,-409.78 ,409.78 ,2101,Gas,1027,Carlton,390.27 
Nottinghamshire Fire and Rescue Service,103981,Joseph Gleave and Son Limited -Joseph Gleave and Son (Holdings) Limited,Joseph Gleave and Son Limited -Joseph Gleave and Son (Holdings) Limited,Management & Support Services,5,202306,02/09/2022,P6,9102655,-473.04 ,473.04 ,B314,Stock,9999,Default,394.20 
Nottinghamshire Fire and Rescue Service,100411,William G search,William G search,Management & Support Services,1,202306,31/08/2022,P6,9102602,-480.00 ,480.00 ,4000,Operational Equipment Purchase,2084,Engineering,400.00 
Nottinghamshire Fire and Rescue Service,101791,Bassetlaw District Council (Debt Collection),Bassetlaw District Council (Debt Collection),Operational Responses,4,202306,24/08/2022,P6,9102876,-407.50 ,407.50 ,2105,Business Rates,1010,Harworth,407.50 
Nottinghamshire Fire and Rescue Service,103981,Joseph Gleave and Son Limited -Joseph Gleave and Son (Holdings) Limited,Joseph Gleave and Son Limited -Joseph Gleave and Son (Holdings) Limited,Management & Support Services,5,202306,26/08/2022,P6,9102632,-489.24 ,489.24 ,B314,Stock,9999,Default,407.70 
Nottinghamshire Fire and Rescue Service,104098,Total Gas & Power Limited,Total Gas & Power Limited,Management & Support Services,5,202306,13/09/2022,P6,9102871,-446.24 ,446.24 ,2101,Gas,1030,Service Development Centre,424.99 
Nottinghamshire Fire and Rescue Service,102280,Amptron Electrical Services,Amptron Electrical Services,Management & Support Services,1,202306,31/05/2022,P6,9102710,"-15,976.96 ","15,976.96 ",2050,Building Maintenance - Planned,2087,Estates Department (Previously Premises),428.49 
Nottinghamshire Fire and Rescue Service,104220,Health 2 Employment,Health 2 Employment,Management & Support Services,5,202306,14/09/2022,P6,9102675,-450.00 ,450.00 ,4552,Occupational Health Costs,2061,Occupational Health & Fitness,450.00 
Nottinghamshire Fire and Rescue Service,102280,Amptron Electrical Services,Amptron Electrical Services,Management & Support Services,1,202306,31/05/2022,P6,9102710,"-15,976.96 ","15,976.96 ",2050,Building Maintenance - Planned,2087,Estates Department (Previously Premises),450.01 
Nottinghamshire Fire and Rescue Service,102655,Nottingham City Council (City Treasurer),Nottingham City Council (City Treasurer),Operational Responses,1,202306,08/09/2022,P6,9102723,-542.36 ,542.36 ,2101,Gas,1003,London Road,451.97 
Nottinghamshire Fire and Rescue Service,100357,Eastern Shires Purchasing Organisation,Eastern Shires Purchasing Organisation,Management & Support Services,1,202306,18/08/2022,P6,9102882,-547.63 ,547.63 ,B314,Stock,9999,Default,456.36 
Nottinghamshire Fire and Rescue Service,102280,Amptron Electrical Services,Amptron Electrical Services,Operational Responses,1,202306,31/07/2022,P6,9102708,"-37,970.44 ","37,970.44 ",2000,Buildings Repairs and Maintenance - Reactive,1006,Edwinstowe,464.19 
Nottinghamshire Fire and Rescue Service,102280,Amptron Electrical Services,Amptron Electrical Services,Operational Responses,1,202306,31/07/2022,P6,9102708,"-37,970.44 ","37,970.44 ",2000,Buildings Repairs and Maintenance - Reactive,1008,Worksop,480.63 
Nottinghamshire Fire and Rescue Service,102280,Amptron Electrical Services,Amptron Electrical Services,Operational Responses,1,202306,31/07/2022,P6,9102708,"-37,970.44 ","37,970.44 ",2000,Buildings Repairs and Maintenance - Reactive,1026,Arnold,484.17 
Nottinghamshire Fire and Rescue Service,103678,Fitness Warehouse Limited t/a Gym Gear,Fitness Warehouse Limited t/a Gym Gear,Management & Support Services,5,202306,26/09/2022,P6,9102823,-588.00 ,588.00 ,4511,Fitness Equipment Maintenance,2061,Occupational Health & Fitness,490.00 
Nottinghamshire Fire and Rescue Service,104168,ioda Limited,ioda Limited,Management & Support Services,5,202306,24/09/2022,P6,9102803,-594.00 ,594.00 ,1801,Training,2054,Equalities Team,495.00 
Nottinghamshire Fire and Rescue Service,104098,Total Gas & Power Limited,Total Gas & Power Limited,Operational Responses,5,202306,13/09/2022,P6,9102856,-594.13 ,594.13 ,2101,Gas,1012,Retford,495.10 
Nottinghamshire Fire and Rescue Service,104231,Girls Sports Club,Girls Sports Club,Management & Support Services,5,202306,09/07/2022,P6,9102685,-595.03 ,595.03 ,4583,Marketing and Publicity,2054,Equalities Team,495.86 
Nottinghamshire Fire and Rescue Service,100557,NCC Sundry Debtors,NCC Sundry Debtors,Operational Responses,4,202306,01/09/2022,P6,9102623,"-33,678.30 ","33,678.30 ",2204,Contract Cleaning,1023,Stapleford,496.91 
Nottinghamshire Fire and Rescue Service,102280,Amptron Electrical Services,Amptron Electrical Services,Management & Support Services,1,202306,31/05/2022,P6,9102710,"-15,976.96 ","15,976.96 ",2050,Building Maintenance - Planned,2087,Estates Department (Previously Premises),505.25 
Nottinghamshire Fire and Rescue Service,102864,William Sugden & sons Limited,William Sugden & sons Limited,Management & Support Services,5,202306,15/09/2022,P6,9102792,-631.80 ,631.80 ,B314,Stock,9999,Default,526.50 
Nottinghamshire Fire and Rescue Service,103589,Hot Pack International,Hot Pack International,Management & Support Services,5,202306,06/09/2022,P6,9102760,-565.14 ,565.14 ,B314,Stock,9999,Default,547.20 
Nottinghamshire Fire and Rescue Service,102660,Jigsaw Systems Limited,Jigsaw Systems Limited,Management & Support Services,5,202306,20/09/2022,P6,9102788,"-3,600.00 ","3,600.00 ",4100,Computer Hardware/ Software,2097,ICT Service Operations,550.00 
Nottinghamshire Fire and Rescue Service,104098,Total Gas & Power Limited,Total Gas & Power Limited,Operational Responses,5,202306,13/09/2022,P6,9102851,-673.12 ,673.12 ,2101,Gas,1026,Arnold,560.93 
Nottinghamshire Fire and Rescue Service,101791,Bassetlaw District Council (Debt Collection),Bassetlaw District Council (Debt Collection),Operational Responses,4,202306,24/08/2022,P6,9102877,-580.00 ,580.00 ,2105,Business Rates,1013,Tuxford,580.00 
Nottinghamshire Fire and Rescue Service,101851,Complete Business Solutions Group Ltd,Complete Business Solutions Group Ltd,Management & Support Services,1,202306,23/09/2022,P6,9102804,-706.94 ,706.94 ,4532,Stationery,2075,Service Support Hub,589.12 
Nottinghamshire Fire and Rescue Service,101980,Hays Specialist Recruitment Limited,Hays Specialist Recruitment Limited,Management & Support Services,1,202306,09/09/2022,P6,9102718,-710.40 ,710.40 ,1005,Admin Agency Staff,2087,Estates Department (Previously Premises),592.00 
Nottinghamshire Fire and Rescue Service,102280,Amptron Electrical Services,Amptron Electrical Services,Management & Support Services,1,202306,31/05/2022,P6,9102710,"-15,976.96 ","15,976.96 ",2050,Building Maintenance - Planned,2087,Estates Department (Previously Premises),596.04 
Nottinghamshire Fire and Rescue Service,100299,FireAngel Safety Technology Limited,FireAngel Safety Technology Limited,Management & Support Services,1,202306,01/09/2022,P6,9102670,-717.60 ,717.60 ,B314,Stock,9999,Default,598.00 
Nottinghamshire Fire and Rescue Service,103277,Actorshop Training Associates,Actorshop Training Associates,Management & Support Services,5,202306,15/09/2022,P6,9102790,-600.00 ,600.00 ,1801,Training,2054,Equalities Team,600.00 
Nottinghamshire Fire and Rescue Service,103277,Actorshop Training Associates,Actorshop Training Associates,Management & Support Services,5,202306,20/09/2022,P6,9102791,-600.00 ,600.00 ,1801,Training,2054,Equalities Team,600.00 
Nottinghamshire Fire and Rescue Service,102280,Amptron Electrical Services,Amptron Electrical Services,Operational Responses,1,202306,31/07/2022,P6,9102708,"-37,970.44 ","37,970.44 ",2000,Buildings Repairs and Maintenance - Reactive,1007,Warsop,604.95 
Nottinghamshire Fire and Rescue Service,104204,Worcestershire Medal Service Limited,Worcestershire Medal Service Limited,Management & Support Services,5,202306,25/08/2022,P6,9102590,-729.06 ,729.06 ,4626,Gifts and Donations,2093,Command Suite,607.55 
Nottinghamshire Fire and Rescue Service,101980,Hays Specialist Recruitment Limited,Hays Specialist Recruitment Limited,Management & Support Services,1,202306,07/09/2022,P6,9102682,-730.91 ,730.91 ,1005,Admin Agency Staff,2058,HR Support,609.09 
Nottinghamshire Fire and Rescue Service,100557,NCC Sundry Debtors,NCC Sundry Debtors,Management & Support Services,4,202306,05/09/2022,P6,9102623,-737.28 ,737.28 ,2204,Contract Cleaning,1035,Headquarters,614.40 
Nottinghamshire Fire and Rescue Service,102364,Woodway Engineering Limited,Woodway Engineering Limited,Management & Support Services,1,202306,22/07/2022,P6,9102818,-759.00 ,759.00 ,3102,Vehicle Maintenance Outsourced,2084,Engineering,632.50 
Nottinghamshire Fire and Rescue Service,101001,Express Recruitment Ltd,Express Recruitment Ltd,Management & Support Services,1,202306,21/09/2022,P6,9102843,-759.24 ,759.24 ,1005,Admin Agency Staff,2087,Estates Department (Previously Premises),632.70 
Nottinghamshire Fire and Rescue Service,102190,Dot Promotional Clothing,Dot Promotional Clothing,Management & Support Services,1,202306,07/09/2022,P6,9102669,-762.72 ,762.72 ,B314,Stock,9999,Default,635.60 
Nottinghamshire Fire and Rescue Service,102660,Jigsaw Systems Limited,Jigsaw Systems Limited,Management & Support Services,5,202306,14/09/2022,P6,9102738,"-1,209.90 ","1,209.90 ",4100,Computer Hardware/ Software,2097,ICT Service Operations,655.80 
Nottinghamshire Fire and Rescue Service,101851,Complete Business Solutions Group Ltd,Complete Business Solutions Group Ltd,Management & Support Services,1,202306,15/09/2022,P6,9102797,-807.94 ,807.94 ,4532,Stationery,2075,Service Support Hub,673.28 
Nottinghamshire Fire and Rescue Service,102280,Amptron Electrical Services,Amptron Electrical Services,Operational Responses,1,202306,31/07/2022,P6,9102708,"-37,970.44 ","37,970.44 ",2000,Buildings Repairs and Maintenance - Reactive,1030,Service Development Centre,685.64 
Nottinghamshire Fire and Rescue Service,104098,Total Gas & Power Limited,Total Gas & Power Limited,Operational Responses,5,202306,13/09/2022,P6,9102867,-838.69 ,838.69 ,2101,Gas,1019,West Bridgford,698.90 
Nottinghamshire Fire and Rescue Service,102280,Amptron Electrical Services,Amptron Electrical Services,Management & Support Services,1,202306,31/05/2022,P6,9102710,"-15,976.96 ","15,976.96 ",2050,Building Maintenance - Planned,2087,Estates Department (Previously Premises),705.64 
Nottinghamshire Fire and Rescue Service,103685,AB Sports Nutrition,AB Sports Nutrition,Management & Support Services,5,202306,26/08/2022,P6,9102741,-853.20 ,853.20 ,B314,Stock,9999,Default,711.00 
Nottinghamshire Fire and Rescue Service,101980,Hays Specialist Recruitment Limited,Hays Specialist Recruitment Limited,Management & Support Services,1,202306,01/09/2022,P6,9102681,-856.75 ,856.75 ,1005,Admin Agency Staff,2058,HR Support,713.96 
Nottinghamshire Fire and Rescue Service,102280,Amptron Electrical Services,Amptron Electrical Services,Management & Support Services,1,202306,31/05/2022,P6,9102710,"-15,976.96 ","15,976.96 ",2050,Building Maintenance - Planned,2087,Estates Department (Previously Premises),722.40 
Nottinghamshire Fire and Rescue Service,102280,Amptron Electrical Services,Amptron Electrical Services,Management & Support Services,1,202306,31/05/2022,P6,9102710,"-15,976.96 ","15,976.96 ",2050,Building Maintenance - Planned,2087,Estates Department (Previously Premises),732.83 
Nottinghamshire Fire and Rescue Service,104098,Total Gas & Power Limited,Total Gas & Power Limited,Operational Responses,5,202306,13/09/2022,P6,9102869,-893.56 ,893.56 ,2101,Gas,1006,Edwinstowe,744.63 
Nottinghamshire Fire and Rescue Service,102757,Turner and Townsend Project Management,Turner and Townsend Project Management,Management & Support Services,5,202306,31/08/2022,P6,9102592,-909.00 ,909.00 ,C152,Professional Fees - Planning,4102,Strategic New Build Projects,757.50 
Nottinghamshire Fire and Rescue Service,102280,Amptron Electrical Services,Amptron Electrical Services,Operational Responses,1,202306,31/07/2022,P6,9102708,"-37,970.44 ","37,970.44 ",2000,Buildings Repairs and Maintenance - Reactive,1035,Headquarters,763.94 
Nottinghamshire Fire and Rescue Service,102280,Amptron Electrical Services,Amptron Electrical Services,Operational Responses,1,202306,31/07/2022,P6,9102708,"-37,970.44 ","37,970.44 ",2000,Buildings Repairs and Maintenance - Reactive,1015,Collingham,769.03 
Nottinghamshire Fire and Rescue Service,102280,Amptron Electrical Services,Amptron Electrical Services,Operational Responses,1,202306,31/07/2022,P6,9102708,"-37,970.44 ","37,970.44 ",2000,Buildings Repairs and Maintenance - Reactive,1013,Tuxford,777.44 
Nottinghamshire Fire and Rescue Service,104168,ioda Limited,ioda Limited,Management & Support Services,5,202306,24/09/2022,P6,9102802,-954.00 ,954.00 ,1801,Training,2054,Equalities Team,795.00 
Nottinghamshire Fire and Rescue Service,101851,Complete Business Solutions Group Ltd,Complete Business Solutions Group Ltd,Management & Support Services,1,202306,30/08/2022,P6,9102804,-955.92 ,955.92 ,2203,Cleaning Materials,1035,Headquarters,796.60 
Nottinghamshire Fire and Rescue Service,101844,Nottinghamshire Relate,Nottinghamshire Relate,Management & Support Services,1,202306,06/09/2022,P6,9102629,-800.00 ,800.00 ,4552,Occupational Health Costs,2061,Occupational Health & Fitness,800.00 
Nottinghamshire Fire and Rescue Service,104098,Total Gas & Power Limited,Total Gas & Power Limited,Operational Responses,5,202306,13/09/2022,P6,9102861,-962.48 ,962.48 ,2101,Gas,1020,Stockhill,802.08 
Nottinghamshire Fire and Rescue Service,102280,Amptron Electrical Services,Amptron Electrical Services,Management & Support Services,1,202306,31/05/2022,P6,9102710,"-15,976.96 ","15,976.96 ",2050,Building Maintenance - Planned,2087,Estates Department (Previously Premises),811.08 
Nottinghamshire Fire and Rescue Service,100446,Speedings Limited,Speedings Limited,Management & Support Services,1,202306,02/09/2022,P6,9102600,"-1,020.00 ","1,020.00 ",4000,Operational Equipment Purchase,2084,Engineering,850.00 
Nottinghamshire Fire and Rescue Service,101980,Hays Specialist Recruitment Limited,Hays Specialist Recruitment Limited,Management & Support Services,1,202306,31/08/2022,P6,9102680,"-1,022.98 ","1,022.98 ",1005,Admin Agency Staff,2087,Estates Department (Previously Premises),852.48 
Nottinghamshire Fire and Rescue Service,102280,Amptron Electrical Services,Amptron Electrical Services,Management & Support Services,1,202306,31/05/2022,P6,9102710,"-15,976.96 ","15,976.96 ",2050,Building Maintenance - Planned,2087,Estates Department (Previously Premises),855.12 
Nottinghamshire Fire and Rescue Service,104098,Total Gas & Power Limited,Total Gas & Power Limited,Operational Responses,5,202306,13/09/2022,P6,9102849,"-1,055.41 ","1,055.41 ",2101,Gas,1005,Ashfield,879.51 
Nottinghamshire Fire and Rescue Service,104134,Xact Consultancy & Training Limited,Xact Consultancy & Training Limited,"Statutory Inspection, Certification & Enforcement",5,202306,23/09/2022,P6,9102777,"-2,136.00 ","2,136.00 ",1801,Training,2021,Fire Protection,890.00 
Nottinghamshire Fire and Rescue Service,102280,Amptron Electrical Services,Amptron Electrical Services,Management & Support Services,1,202306,31/05/2022,P6,9102710,"-15,976.96 ","15,976.96 ",2050,Building Maintenance - Planned,2087,Estates Department (Previously Premises),893.59 
Nottinghamshire Fire and Rescue Service,102280,Amptron Electrical Services,Amptron Electrical Services,Operational Responses,1,202306,31/07/2022,P6,9102708,"-37,970.44 ","37,970.44 ",2000,Buildings Repairs and Maintenance - Reactive,1016,Newark,928.03 
Nottinghamshire Fire and Rescue Service,102280,Amptron Electrical Services,Amptron Electrical Services,Management & Support Services,1,202306,31/05/2022,P6,9102710,"-15,976.96 ","15,976.96 ",2050,Building Maintenance - Planned,2087,Estates Department (Previously Premises),931.08 
Nottinghamshire Fire and Rescue Service,102190,Dot Promotional Clothing,Dot Promotional Clothing,Management & Support Services,1,202306,30/08/2022,P6,9102662,"-1,128.00 ","1,128.00 ",B314,Stock,9999,Default,940.00 
Nottinghamshire Fire and Rescue Service,103045,Mitchell Diesel Limited,Mitchell Diesel Limited,Management & Support Services,5,202306,24/08/2022,P6,9102789,"-1,136.71 ","1,136.71 ",3102,Vehicle Maintenance Outsourced,2084,Engineering,947.26 
Nottinghamshire Fire and Rescue Service,102228,Keltruck Limited,Keltruck Limited,Management & Support Services,1,202306,20/09/2022,P6,9102764,"-1,143.29 ","1,143.29 ",3102,Vehicle Maintenance Outsourced,2084,Engineering,952.74 
Nottinghamshire Fire and Rescue Service,102322,Sws Environmental Services Ltd,Sws Environmental Services Ltd,Management & Support Services,1,202306,23/09/2022,P6,9102816,"-1,176.00 ","1,176.00 ",4004,Fire Hose and Couplings,2084,Engineering,980.00 
Nottinghamshire Fire and Rescue Service,101791,Bassetlaw District Council (Debt Collection),Bassetlaw District Council (Debt Collection),Operational Responses,4,202306,24/08/2022,P6,9102874,-985.00 ,985.00 ,2105,Business Rates,1008,Worksop,985.00 
Nottinghamshire Fire and Rescue Service,101791,Bassetlaw District Council (Debt Collection),Bassetlaw District Council (Debt Collection),Operational Responses,4,202306,06/09/2022,P6,9102847,"-1,292.64 ","1,292.64 ",2105,Business Rates,1008,Worksop,985.00 
Nottinghamshire Fire and Rescue Service,100557,NCC Sundry Debtors,NCC Sundry Debtors,Operational Responses,4,202306,01/09/2022,P6,9102623,"-33,678.30 ","33,678.30 ",2204,Contract Cleaning,1006,Edwinstowe,"1,010.88 "
Nottinghamshire Fire and Rescue Service,104098,Total Gas & Power Limited,Total Gas & Power Limited,Operational Responses,5,202306,13/09/2022,P6,9102860,"-1,246.47 ","1,246.47 ",2101,Gas,1008,Worksop,"1,038.72 "
Nottinghamshire Fire and Rescue Service,101791,Bassetlaw District Council (Debt Collection),Bassetlaw District Council (Debt Collection),Operational Responses,4,202306,24/08/2022,P6,9102875,"-1,110.00 ","1,110.00 ",2105,Business Rates,1012,Retford,"1,110.00 "
Nottinghamshire Fire and Rescue Service,102757,Turner and Townsend Project Management,Turner and Townsend Project Management,Management & Support Services,5,202306,31/08/2022,P6,9102628,"-1,366.48 ","1,366.48 ",C150,Professional Fees - Architects,4102,Strategic New Build Projects,"1,138.73 "
Nottinghamshire Fire and Rescue Service,102376,Bristol Uniforms Limited,Bristol Uniforms Limited,Management & Support Services,1,202306,16/09/2022,P6,9102812,"-1,387.63 ","1,387.63 ",B314,Stock,9999,Default,"1,156.36 "
Nottinghamshire Fire and Rescue Service,102280,Amptron Electrical Services,Amptron Electrical Services,Operational Responses,1,202306,31/07/2022,P6,9102708,"-37,970.44 ","37,970.44 ",2000,Buildings Repairs and Maintenance - Reactive,1029,Highfields Station,"1,178.03 "
Nottinghamshire Fire and Rescue Service,102376,Bristol Uniforms Limited,Bristol Uniforms Limited,Management & Support Services,1,202306,14/09/2022,P6,9102763,"-1,413.86 ","1,413.86 ",B314,Stock,9999,Default,"1,178.22 "
Nottinghamshire Fire and Rescue Service,100557,NCC Sundry Debtors,NCC Sundry Debtors,Operational Responses,4,202306,01/09/2022,P6,9102623,"-33,678.30 ","33,678.30 ",2204,Contract Cleaning,1026,Arnold,"1,226.43 "
Nottinghamshire Fire and Rescue Service,104134,Xact Consultancy & Training Limited,Xact Consultancy & Training Limited,"Statutory Inspection, Certification & Enforcement",5,202306,09/09/2022,P6,9102686,"-1,536.00 ","1,536.00 ",1801,Training,2021,Fire Protection,"1,280.00 "
Nottinghamshire Fire and Rescue Service,100114,Goliath Footwear Ltd,Goliath Footwear Ltd,Management & Support Services,1,202306,24/08/2022,P6,9102631,"-1,544.44 ","1,544.44 ",B314,Stock,9999,Default,"1,287.03 "
Nottinghamshire Fire and Rescue Service,100557,NCC Sundry Debtors,NCC Sundry Debtors,Operational Responses,4,202306,01/09/2022,P6,9102623,"-33,678.30 ","33,678.30 ",2204,Contract Cleaning,1005,Ashfield,"1,309.26 "
Nottinghamshire Fire and Rescue Service,100557,NCC Sundry Debtors,NCC Sundry Debtors,Operational Responses,4,202306,01/09/2022,P6,9102623,"-33,678.30 ","33,678.30 ",2204,Contract Cleaning,1016,Newark,"1,309.26 "
Nottinghamshire Fire and Rescue Service,104098,Total Gas & Power Limited,Total Gas & Power Limited,Operational Responses,5,202306,13/09/2022,P6,9102852,"-1,579.66 ","1,579.66 ",2101,Gas,1029,Highfields Station,"1,316.39 "
Nottinghamshire Fire and Rescue Service,104098,Total Gas & Power Limited,Total Gas & Power Limited,Operational Responses,5,202306,13/09/2022,P6,9102868,"-1,597.93 ","1,597.93 ",2101,Gas,1001,Mansfield,"1,331.60 "
Nottinghamshire Fire and Rescue Service,102280,Amptron Electrical Services,Amptron Electrical Services,Management & Support Services,1,202306,31/05/2022,P6,9102710,"-15,976.96 ","15,976.96 ",2050,Building Maintenance - Planned,2087,Estates Department (Previously Premises),"1,335.43 "
Nottinghamshire Fire and Rescue Service,102376,Bristol Uniforms Limited,Bristol Uniforms Limited,Management & Support Services,1,202306,30/08/2022,P6,9102638,"-1,743.17 ","1,743.17 ",B314,Stock,9999,Default,"1,452.64 "
Nottinghamshire Fire and Rescue Service,103280,Shred IT Limited,Shred IT Limited,Management & Support Services,5,202306,31/08/2022,P6,9102756,"-2,192.61 ","2,192.61 ",2106,Refuse / Trade Waste Collection,2086,Procurement,"1,467.17 "
Nottinghamshire Fire and Rescue Service,102190,Dot Promotional Clothing,Dot Promotional Clothing,Management & Support Services,1,202306,31/08/2022,P6,9102663,"-1,904.40 ","1,904.40 ",B314,Stock,9999,Default,"1,587.00 "
Nottinghamshire Fire and Rescue Service,102744,EDF Energy,EDF Energy,Operational Responses,1,202306,01/09/2022,P6,9102872,"-1,948.50 ","1,948.50 ",2100,Electricity,1008,Worksop,"1,623.75 "
Nottinghamshire Fire and Rescue Service,100557,NCC Sundry Debtors,NCC Sundry Debtors,Operational Responses,4,202306,01/09/2022,P6,9102623,"-33,678.30 ","33,678.30 ",2204,Contract Cleaning,1020,Stockhill,"1,640.62 "
Nottinghamshire Fire and Rescue Service,100557,NCC Sundry Debtors,NCC Sundry Debtors,Operational Responses,4,202306,01/09/2022,P6,9102623,"-33,678.30 ","33,678.30 ",2204,Contract Cleaning,1008,Worksop,"1,645.61 "
Nottinghamshire Fire and Rescue Service,101866,Leicestershire Fire & Rescue Service (Bacs),Leicestershire Fire & Rescue Service (Bacs),Operational Responses,4,202306,04/07/2022,P6,9102611,"-1,741.00 ","1,741.00 ",3500,Casual Mileage,2005,Fire Control,"1,664.00 "
Nottinghamshire Fire and Rescue Service,100557,NCC Sundry Debtors,NCC Sundry Debtors,Operational Responses,4,202306,01/09/2022,P6,9102623,"-33,678.30 ","33,678.30 ",2204,Contract Cleaning,1012,Retford,"1,673.76 "
Nottinghamshire Fire and Rescue Service,102280,Amptron Electrical Services,Amptron Electrical Services,Operational Responses,1,202306,31/07/2022,P6,9102708,"-37,970.44 ","37,970.44 ",2000,Buildings Repairs and Maintenance - Reactive,1027,Carlton,"1,760.51 "
Nottinghamshire Fire and Rescue Service,102280,Amptron Electrical Services,Amptron Electrical Services,Operational Responses,1,202306,31/07/2022,P6,9102708,"-37,970.44 ","37,970.44 ",2000,Buildings Repairs and Maintenance - Reactive,1002,Blidworth,"1,789.00 "
Nottinghamshire Fire and Rescue Service,100557,NCC Sundry Debtors,NCC Sundry Debtors,Management & Support Services,4,202306,01/09/2022,P6,9102623,"-33,678.30 ","33,678.30 ",2204,Contract Cleaning,1030,Service Development Centre,"1,789.81 "
Nottinghamshire Fire and Rescue Service,102420,BT PLC,BT PLC,Management & Support Services,1,202306,09/08/2022,P6,9102800,"-2,148.70 ","2,148.70 ",4301,Phones - Landline,2097,ICT Service Operations,"1,790.58 "
Nottinghamshire Fire and Rescue Service,102280,Amptron Electrical Services,Amptron Electrical Services,Operational Responses,1,202306,31/07/2022,P6,9102708,"-37,970.44 ","37,970.44 ",2000,Buildings Repairs and Maintenance - Reactive,1005,Ashfield,"1,806.98 "
Nottinghamshire Fire and Rescue Service,102280,Amptron Electrical Services,Amptron Electrical Services,Management & Support Services,1,202306,31/05/2022,P6,9102710,"-15,976.96 ","15,976.96 ",2050,Building Maintenance - Planned,2087,Estates Department (Previously Premises),"1,840.03 "
Nottinghamshire Fire and Rescue Service,103483,Risual Limited,Risual Limited,Management & Support Services,5,202306,20/09/2022,P6,9102835,"-2,224.87 ","2,224.87 ",4301,Phones - Landline,2097,ICT Service Operations,"1,854.06 "
Nottinghamshire Fire and Rescue Service,102280,Amptron Electrical Services,Amptron Electrical Services,Operational Responses,1,202306,31/07/2022,P6,9102708,"-37,970.44 ","37,970.44 ",2000,Buildings Repairs and Maintenance - Reactive,1012,Retford,"1,926.69 "
Nottinghamshire Fire and Rescue Service,102309,Walter Frank & Sons Limited,Walter Frank & Sons Limited,Management & Support Services,1,202306,15/09/2022,P6,9102783,"-2,394.00 ","2,394.00 ",4000,Operational Equipment Purchase,2084,Engineering,"1,940.00 "
Nottinghamshire Fire and Rescue Service,100557,NCC Sundry Debtors,NCC Sundry Debtors,Management & Support Services,4,202306,01/09/2022,P6,9102728,"-2,365.20 ","2,365.20 ",1850,Recruitment Advertising,2049,Professional Support,"1,971.00 "
Nottinghamshire Fire and Rescue Service,100557,NCC Sundry Debtors,NCC Sundry Debtors,Operational Responses,4,202306,01/09/2022,P6,9102623,"-33,678.30 ","33,678.30 ",2204,Contract Cleaning,1019,West Bridgford,"2,005.00 "
Nottinghamshire Fire and Rescue Service,102280,Amptron Electrical Services,Amptron Electrical Services,Operational Responses,1,202306,31/07/2022,P6,9102708,"-37,970.44 ","37,970.44 ",2000,Buildings Repairs and Maintenance - Reactive,1001,Mansfield,"2,149.07 "
Nottinghamshire Fire and Rescue Service,100557,NCC Sundry Debtors,NCC Sundry Debtors,Operational Responses,4,202306,01/09/2022,P6,9102623,"-33,678.30 ","33,678.30 ",2204,Contract Cleaning,1027,Carlton,"2,303.82 "
Nottinghamshire Fire and Rescue Service,100557,NCC Sundry Debtors,NCC Sundry Debtors,Operational Responses,4,202306,01/09/2022,P6,9102623,"-33,678.30 ","33,678.30 ",2204,Contract Cleaning,1001,Mansfield,"2,336.96 "
Nottinghamshire Fire and Rescue Service,102119,Radiocoms Systems Ltd,Radiocoms Systems Ltd,"Statutory Inspection, Certification & Enforcement",1,202306,13/09/2022,P6,9102832,"-2,826.00 ","2,826.00 ",1801,Training,2021,Fire Protection,"2,355.00 "
Nottinghamshire Fire and Rescue Service,100290,Lemaitre Ltd,Lemaitre Ltd,Management & Support Services,1,202306,16/09/2022,P6,9102782,"-2,959.20 ","2,959.20 ",B314,Stock,9999,Default,"2,376.00 "
Nottinghamshire Fire and Rescue Service,103814,Ergo Computing UK,Ergo Computing UK,Management & Support Services,5,202306,15/09/2022,P6,9102787,"-2,927.90 ","2,927.90 ",C200,Hardware,4300,ICT Capital Programme,"2,429.92 "
Nottinghamshire Fire and Rescue Service,102660,Jigsaw Systems Limited,Jigsaw Systems Limited,Management & Support Services,5,202306,20/09/2022,P6,9102788,"-3,600.00 ","3,600.00 ",4104,Non-Contracted Services - ICT,2097,ICT Service Operations,"2,450.00 "
Nottinghamshire Fire and Rescue Service,103942,The Lodge Tyre Co. Limited,The Lodge Tyre Co. Limited,Management & Support Services,5,202306,31/08/2022,P6,9102745,"-3,012.31 ","3,012.31 ",3202,Tyres,2084,Engineering,"2,510.26 "
Nottinghamshire Fire and Rescue Service,100557,NCC Sundry Debtors,NCC Sundry Debtors,Operational Responses,4,202306,01/09/2022,P6,9102623,"-33,678.30 ","33,678.30 ",2204,Contract Cleaning,1003,London Road,"2,579.47 "
Nottinghamshire Fire and Rescue Service,101866,Leicestershire Fire & Rescue Service (Bacs),Leicestershire Fire & Rescue Service (Bacs),Operational Responses,4,202306,13/07/2022,P6,9102612,"-2,724.00 ","2,724.00 ",1001,Admin Pay,2005,Fire Control,"2,724.00 "
Nottinghamshire Fire and Rescue Service,102280,Amptron Electrical Services,Amptron Electrical Services,Operational Responses,1,202306,31/07/2022,P6,9102708,"-37,970.44 ","37,970.44 ",2000,Buildings Repairs and Maintenance - Reactive,1020,Stockhill,"2,767.32 "
Nottinghamshire Fire and Rescue Service,104187,Wernick Event Hire Limited,Wernick Event Hire Limited,Management & Support Services,5,202306,23/09/2022,P6,9102830,"-3,372.00 ","3,372.00 ",4601,Community Safety Delivery Equipment,2068,Prevention,"2,810.00 "
Nottinghamshire Fire and Rescue Service,102280,Amptron Electrical Services,Amptron Electrical Services,Operational Responses,1,202306,31/07/2022,P6,9102708,"-37,970.44 ","37,970.44 ",2000,Buildings Repairs and Maintenance - Reactive,1014,Southwell,"2,976.29 "
Nottinghamshire Fire and Rescue Service,102964,Trinity Occupational and Public Health Solutions Ltd,Trinity Occupational and Public Health Solutions Ltd,Management & Support Services,5,202306,29/07/2022,P6,9102679,"-3,000.00 ","3,000.00 ",4552,Occupational Health Costs,2061,Occupational Health & Fitness,"3,000.00 "
Nottinghamshire Fire and Rescue Service,104229,YMD Boon Ltd,YMD Boon Ltd,Management & Support Services,5,202306,31/08/2022,P6,9102677,"-3,600.00 ","3,600.00 ",C154,Professional Fees - Design,4101,Non Operational Buildings Improvements & Refurbishments,"3,000.00 "
Nottinghamshire Fire and Rescue Service,102376,Bristol Uniforms Limited,Bristol Uniforms Limited,Management & Support Services,1,202306,12/09/2022,P6,9102751,"-3,753.65 ","3,753.65 ",B314,Stock,9999,Default,"3,128.04 "
Nottinghamshire Fire and Rescue Service,103923,Bupa UK Insurance Services,Bupa UK Insurance Services,Management & Support Services,5,202306,30/08/2022,P6,9102713,"-3,254.21 ","3,254.21 ",1860,Employee Benefits Schemes,2049,Professional Support,"3,254.21 "
Nottinghamshire Fire and Rescue Service,101802,EE,EE,Management & Support Services,1,202306,01/09/2022,P6,9102798,"-3,986.83 ","3,986.83 ",4302,Phones - Mobiles,2097,ICT Service Operations,"3,320.73 "
Nottinghamshire Fire and Rescue Service,101802,EE,EE,Management & Support Services,1,202306,01/08/2022,P6,9102799,"-3,986.72 ","3,986.72 ",4302,Phones - Mobiles,2097,ICT Service Operations,"3,322.27 "
Nottinghamshire Fire and Rescue Service,100557,NCC Sundry Debtors,NCC Sundry Debtors,Operational Responses,4,202306,01/09/2022,P6,9102623,"-33,678.30 ","33,678.30 ",2204,Contract Cleaning,1029,Highfields Station,"4,319.04 "
Nottinghamshire Fire and Rescue Service,102280,Amptron Electrical Services,Amptron Electrical Services,Operational Responses,1,202306,31/07/2022,P6,9102708,"-37,970.44 ","37,970.44 ",2000,Buildings Repairs and Maintenance - Reactive,1019,West Bridgford,"4,328.83 "
Nottinghamshire Fire and Rescue Service,102280,Amptron Electrical Services,Amptron Electrical Services,Operational Responses,1,202306,31/07/2022,P6,9102708,"-37,970.44 ","37,970.44 ",2000,Buildings Repairs and Maintenance - Reactive,1003,London Road,"4,553.15 "
Nottinghamshire Fire and Rescue Service,102979,Planet IT Limited,Planet IT Limited,Management & Support Services,5,202306,24/06/2022,P6,9102767,"-5,640.00 ","5,640.00 ",C200,Hardware,4102,Strategic New Build Projects,"4,700.00 "
Nottinghamshire Fire and Rescue Service,103094,Draeger Safety UK Limited,Draeger Safety UK Limited,Management & Support Services,5,202306,01/09/2022,P6,9102607,"-6,271.20 ","6,271.20 ",4002,Breathing Apparatus,2084,Engineering,"5,226.00 "
Nottinghamshire Fire and Rescue Service,104129,Oxford Safety Supplies,Oxford Safety Supplies,Management & Support Services,5,202306,25/07/2022,P6,9102630,"-6,573.12 ","6,573.12 ",B314,Stock,9999,Default,"5,470.10 "
Nottinghamshire Fire and Rescue Service,102376,Bristol Uniforms Limited,Bristol Uniforms Limited,Management & Support Services,1,202306,23/09/2022,P6,9102885,"-6,819.41 ","6,819.41 ",B314,Stock,9999,Default,"5,682.84 "
Nottinghamshire Fire and Rescue Service,104009,Systel,Systel,Management & Support Services,5,202306,13/09/2022,P6,9102732,"-5,940.00 ","5,940.00 ",C202,Consultancy and Services,4300,ICT Capital Programme,"5,940.00 "
Nottinghamshire Fire and Rescue Service,101860,Zurich Municipal (Head Office & Underwriting),Zurich Municipal (Head Office & Underwriting),Management & Support Services,1,202306,31/08/2022,P6,9102766,"-6,653.00 ","6,653.00 ",4890,Insurance - Other Premiums,2063,Risk Management & Insurance,"6,653.00 "
Nottinghamshire Fire and Rescue Service,100878,Nottinghamshire County Council,Nottinghamshire County Council,Management & Support Services,4,202306,18/08/2022,P6,9102610,"-9,246.00 ","9,246.00 ",7500,Treasury Services,1086,Corporate Core,"7,705.00 "
Nottinghamshire Fire and Rescue Service,103766,CERTAS,CERTAS,Operational Responses,5,202306,02/09/2022,P6,9102743,"-10,753.55 ","10,753.55 ",3200,Fuel - Vehicle,1029,Highfields Station,"8,961.29 "
Nottinghamshire Fire and Rescue Service,103795,Idox Software Ltd,Idox Software Ltd,Management & Support Services,5,202306,27/09/2022,P6,9102839,"-10,766.38 ","10,766.38 ",4101,Computer Software Maintenance Contracts,2095,ICT Digital Transformation,"8,971.98 "
Nottinghamshire Fire and Rescue Service,103766,CERTAS,CERTAS,Operational Responses,5,202306,07/09/2022,P6,9102805,"-12,843.82 ","12,843.82 ",3200,Fuel - Vehicle,1027,Carlton,"10,703.18 "
Nottinghamshire Fire and Rescue Service,103766,CERTAS,CERTAS,Operational Responses,5,202306,16/08/2022,P6,9102742,"-13,377.60 ","13,377.60 ",3200,Fuel - Vehicle,1005,Ashfield,"11,148.00 "
Nottinghamshire Fire and Rescue Service,103373,GTT (Interoute/Easynet),GTT (Interoute/Easynet),Management & Support Services,5,202306,25/09/2022,P6,9102821,"-15,741.62 ","15,741.62 ",4101,Computer Software Maintenance Contracts,2095,ICT Digital Transformation,"12,924.16 "
Nottinghamshire Fire and Rescue Service,101866,Leicestershire Fire & Rescue Service (Bacs),Leicestershire Fire & Rescue Service (Bacs),Operational Responses,4,202306,04/07/2022,P6,9102588,"-41,101.00 ","41,101.00 ",1001,Admin Pay,2005,Fire Control,"15,931.00 "
Nottinghamshire Fire and Rescue Service,103214,Excelerate Technology Limited,Excelerate Technology Limited,Management & Support Services,5,202306,16/09/2022,P6,9102781,"-19,645.20 ","19,645.20 ",4101,Computer Software Maintenance Contracts,2095,ICT Digital Transformation,"16,371.00 "
Nottinghamshire Fire and Rescue Service,102280,Amptron Electrical Services,Amptron Electrical Services,Management & Support Services,1,202306,30/06/2022,P6,9102707,"-21,346.92 ","21,346.92 ",C104,Electrical / IT Comms /Printers Etc,4100,Fire Station Improvement & Refurbishments,"17,789.10 "
Nottinghamshire Fire and Rescue Service,104238,Darktrace Holdings Limited,Darktrace Holdings Limited,Management & Support Services,5,202306,15/07/2022,P6,9102683,"-27,878.40 ","27,878.40 ",4101,Computer Software Maintenance Contracts,2097,ICT Service Operations,"23,232.00 "
Nottinghamshire Fire and Rescue Service,103483,Risual Limited,Risual Limited,Management & Support Services,5,202306,29/07/2022,P6,9102678,"-28,380.00 ","28,380.00 ",C202,Consultancy and Services,4300,ICT Capital Programme,"23,650.00 "
Nottinghamshire Fire and Rescue Service,101866,Leicestershire Fire & Rescue Service (Bacs),Leicestershire Fire & Rescue Service (Bacs),Operational Responses,4,202306,04/07/2022,P6,9102588,"-41,101.00 ","41,101.00 ",1001,Admin Pay,2005,Fire Control,"25,170.00 "
Nottinghamshire Fire and Rescue Service,104129,Oxford Safety Supplies,Oxford Safety Supplies,Management & Support Services,5,202306,15/07/2022,P6,9102589,"-31,548.06 ","31,548.06 ",B314,Stock,9999,Default,"26,026.45 "
Nottinghamshire Fire and Rescue Service,100289,Home Office,Home Office,Management & Support Services,4,202306,02/09/2022,P6,9102673,"-61,320.68 ","61,320.68 ",4204,FireLink Contract Charges,2097,ICT Service Operations,"51,100.57 "
Nottinghamshire Fire and Rescue Service,103094,Draeger Safety UK Limited,Draeger Safety UK Limited,Management & Support Services,5,202306,01/09/2022,P6,9102676,"-85,579.13 ","85,579.13 ",4002,Breathing Apparatus,2084,Engineering,"71,315.94 "
***Note:,,,,,,,,,,,,,,,,
"***The report shows the payment in its original form. This means disaggregating many invoices into individual component payments many of which will be less than £250 in their own right. This explains why you will see many of the amounts showing less than £250. They were, however, paid as part of an invoice of £250 or more.

**** The Invoice date is the date issued on the invoice. This date may fall out of the date range for the report. In most cases this is due to the invoice being received  late.",,,,,,,,,,,,,,,,